bitfinex-derivatives/quotes_BTCF0:USTF0_20251110
["timestamp","ask_amount","ask_price","bid_price","bid_amount"]
[1762795231185,0.55216414,105380.0,105370.0,0.01279246]
[1762795231885,0.55216414,105380.0,105370.0,0.02259626]
[1762795232485,0.55316414,105380.0,105370.0,0.02259626]
[1762795232787,0.55316414,105380.0,105370.0,0.05945049]
[1762795233593,0.55316414,105380.0,105370.0,0.0692121]
[1762795235391,0.55316414,105380.0,105370.0,0.0462821]
[1762795236082,0.55316414,105380.0,105370.0,0.0692121]
[1762795237885,0.45857992,105380.0,105370.0,0.0692121]
[1762795238091,0.55316414,105380.0,105370.0,0.0692121]
[1762795238895,0.55316414,105380.0,105370.0,0.06701407]
[1762795239087,0.55316414,105380.0,105370.0,0.0692121]
[1762795239604,0.55316414,105380.0,105370.0,0.01499049]
[1762795239989,0.55316414,105380.0,105370.0,0.03652049]
[1762795240190,0.55316414,105380.0,105370.0,0.05945049]
[1762795241286,0.55316414,105380.0,105370.0,0.01499049]
[1762795242497,0.55316414,105380.0,105370.0,0.03652049]
[1762795243496,0.55316414,105380.0,105370.0,0.05945049]
[1762795244597,0.55316414,105380.0,105370.0,0.03652049]
[1762795246791,0.55316414,105380.0,105370.0,0.03432246]
[1762795247102,0.45857992,105380.0,105370.0,0.05945049]
[1762795247297,0.55316414,105380.0,105370.0,0.05945049]
[1762795248089,0.55116414,105380.0,105370.0,0.05945049]
[1762795248303,0.55116414,105380.0,105370.0,0.15439629]
[1762795248792,0.55216414,105380.0,105370.0,0.15439629]
[1762795249507,0.55216414,105380.0,105370.0,0.05945049]
[1762795249803,0.55216414,105380.0,105370.0,0.15439629]
[1762795250299,0.45657992,105380.0,105370.0,0.15439629]
[1762795250894,0.36164312,105380.0,105370.0,0.15439629]
[1762795251094,0.45657992,105380.0,105370.0,0.15439629]
[1762795251696,0.36164312,105380.0,105370.0,0.15439629]
[1762795251891,0.36164312,105380.0,105370.0,0.15639629]
[1762795252399,0.00084312,105380.0,105370.0,0.6798301]
[1762795252597,0.3608,105390.0,105380.0,0.1516868]
[1762795252798,0.00014246,105400.0,105390.0,0.1516778]
[1762795253105,0.45586126,105400.0,105390.0,0.31629454]
[1762795253404,0.45586126,105400.0,105390.0,0.22171032]
[1762795253405,0.36094246,105400.0,105390.0,0.22171032]
[1762795253595,0.00026273,105400.0,105390.0,0.31629454]
[1762795254092,0.00226273,105400.0,105390.0,0.31629454]
[1762795254489,0.09718153,105400.0,105390.0,0.31629454]
[1762795254702,0.00226273,105400.0,105390.0,0.31629454]
[1762795254897,0.00126273,105400.0,105390.0,0.31629454]
[1762795255095,0.00026273,105400.0,105390.0,0.32029454]
[1762795255496,0.00026273,105400.0,105390.0,0.39738758]
[1762795256501,0.3617954,105400.0,105390.0,0.29945978]
[1762795256806,0.0009954,105400.0,105390.0,0.30045978]
[1762795257005,0.0009954,105400.0,105390.0,0.30080336]
[1762795257309,0.3617954,105400.0,105390.0,0.20587556]
[1762795257509,0.3617954,105400.0,105390.0,0.30080336]
[1762795258099,0.3617954,105400.0,105390.0,0.29880336]
[1762795258300,0.3617954,105400.0,105390.0,0.39438758]
[1762795258504,0.0009954,105400.0,105390.0,0.39438758]
[1762795258802,0.0959142,105400.0,105390.0,0.29945978]
[1762795259004,0.0009954,105400.0,105390.0,0.39438758]
[1762795259602,0.0009954,105400.0,105390.0,0.39338758]
[1762795259603,0.00026273,105400.0,105390.0,0.39338758]
[1762795260504,0.0009954,105400.0,105390.0,0.39338758]
[1762795260896,0.0009954,105400.0,105390.0,0.32555309]
[1762795261808,0.0009954,105400.0,105390.0,0.23062529]
[1762795262005,0.3617954,105400.0,105390.0,0.13604107]
[1762795262300,0.3617954,105400.0,105390.0,0.32555309]
[1762795264311,0.0009954,105400.0,105390.0,0.39338758]
[1762795264508,0.0009954,105400.0,105390.0,0.89978758]
[1762795264509,0.00026273,105400.0,105390.0,0.89978758]
[1762795264712,0.3608,105410.0,105400.0,0.1510188]
[1762795264909,0.3608,105420.0,105410.0,0.1510098]
[1762795265106,0.36153267,105420.0,105410.0,0.24779205]
[1762795265307,0.3608,105430.0,105420.0,0.1510008]
[1762795265613,0.36153267,105430.0,105420.0,0.15319883]
[1762795266015,0.36153267,105430.0,105420.0,0.24778305]
[1762795266207,0.3608,105430.0,105420.0,0.24778305]
[1762795266411,0.36094246,105440.0,105430.0,0.1509919]
[1762795266615,0.36167513,105440.0,105430.0,0.15318993]
[1762795266915,0.55114225,105440.0,105430.0,0.05829803]
[1762795267104,0.45625935,105440.0,105430.0,0.15318993]
[1762795267416,0.55114235,105440.0,105430.0,0.05829803]
[1762795267610,0.55114235,105440.0,105430.0,0.05929803]
[1762795268616,0.55114235,105440.0,105430.0,0.06029803]
[1762795269004,0.55109131,105440.0,105430.0,0.13519293]
[1762795269212,0.55109131,105440.0,105430.0,0.05929803]
[1762795269418,0.64562449,105440.0,105430.0,0.05829803]
[1762795270207,0.64562449,105440.0,105430.0,0.01507803]
[1762795270816,0.64662449,105440.0,105430.0,0.03659803]
[1762795271016,0.64662449,105440.0,105430.0,0.05829803]
[1762795271318,0.64662449,105440.0,105430.0,0.01507803]
[1762795272917,0.64762449,105440.0,105430.0,0.01507803]
[1762795273319,0.64662449,105440.0,105430.0,0.01507803]
[1762795273619,0.64962449,105440.0,105430.0,0.03659803]
[1762795273818,0.64962449,105440.0,105430.0,0.01507803]
[1762795274218,0.64962449,105440.0,105430.0,0.00219803]
[1762795274516,0.64962449,105440.0,105430.0,0.01507803]
[1762795275519,0.64962449,105440.0,105430.0,0.05829803]
[1762795278021,0.64762449,105440.0,105430.0,0.05829803]
[1762795278215,0.64862449,105440.0,105430.0,0.05829803]
[1762795278823,0.64762449,105440.0,105430.0,0.05829803]
[1762795280220,0.64762449,105440.0,105430.0,0.01507803]
[1762795280918,0.64762449,105440.0,105420.0,0.05571]
[1762795280919,0.0948921,105430.0,105420.0,0.05571]
[1762795281124,0.64549113,105430.0,105420.0,0.01288]
[1762795281723,0.0949011,105420.0,105410.0,0.05585246]
[1762795281914,0.64550013,105420.0,105410.0,0.05805049]
[1762795282923,0.64550013,105420.0,105410.0,0.05905049]
[1762795283309,0.64550013,105420.0,105410.0,0.05805049]
[1762795283515,0.64650013,105420.0,105410.0,0.05805049]
[1762795283915,0.64650013,105420.0,105410.0,0.05905049]
[1762795284527,0.64650013,105420.0,105410.0,0.05805049]
[1762795284821,0.45843377,105420.0,105410.0,0.15296059]
[1762795285015,0.55296695,105420.0,105410.0,0.24749377]
[1762795285216,0.55296695,105420.0,105410.0,0.15296059]
[1762795285416,0.55296695,105420.0,105410.0,0.05805049]
[1762795285616,0.55296695,105420.0,105410.0,0.15296059]
[1762795285918,0.64750013,105420.0,105410.0,0.05805049]
[1762795286117,0.74203331,105420.0,105410.0,0.00234049]
[1762795286312,0.74203331,105420.0,105410.0,0.00014246]
[1762795286517,0.64650013,105420.0,105410.0,0.05898049]
[1762795287126,0.64550013,105420.0,105410.0,0.05898049]
[1762795287825,0.55096695,105420.0,105410.0,0.24842377]
[1762795288123,0.45806585,105420.0,105410.0,0.24842377]
[1762795288920,0.36353267,105420.0,105410.0,0.24842377]
[1762795289120,0.36253267,105420.0,105410.0,0.31625826]
[1762795289320,0.45706585,105420.0,105410.0,0.24942377]
[1762795289527,0.45706585,105420.0,105410.0,0.31725826]
[1762795290125,0.45606585,105420.0,105410.0,0.25042377]
[1762795290728,0.45606585,105420.0,105410.0,0.24942377]
[1762795290928,0.45606585,105420.0,105410.0,0.25042377]
[1762795291620,0.45606585,105420.0,105410.0,0.31825826]
[1762795294123,0.55096705,105420.0,105410.0,0.31625826]
[1762795294323,0.45606585,105420.0,105410.0,0.31825826]
[1762795295328,0.55096695,105420.0,105410.0,0.31825826]
[1762795296030,0.45606585,105420.0,105410.0,0.31625826]
[1762795296230,0.45606585,105420.0,105410.0,0.31825826]
[1762795296828,0.00073267,105420.0,105410.0,0.31825826]
[1762795297021,0.3608,105430.0,105420.0,0.1515412]
[1762795297229,0.36094246,105440.0,105430.0,0.1515322]
[1762795297531,0.36167513,105440.0,105430.0,0.24826341]
[1762795297729,0.36167513,105440.0,105430.0,0.31607108]
[1762795298031,0.00014246,105440.0,105430.0,0.39318041]
[1762795298227,0.3608,105450.0,105440.0,0.1515232]
[1762795298433,0.36153267,105450.0,105440.0,0.31602118]
[1762795299433,0.36153267,105450.0,105440.0,0.64763436]
[1762795299727,0.55094005,105450.0,105440.0,0.1266048]
[1762795300132,0.55094005,105450.0,105440.0,0.1276048]
[1762795300325,0.45606585,105450.0,105440.0,0.31702118]
[1762795301036,0.45606585,105450.0,105440.0,0.31802118]
[1762795301932,0.36153267,105450.0,105440.0,0.31802118]
[1762795302330,0.00073267,105450.0,105440.0,0.31802118]
[1762795302531,0.00073267,105450.0,105440.0,0.31702118]
[1762795302732,0.00073267,105450.0,105440.0,0.31802118]
[1762795303827,0.09560687,105450.0,105440.0,0.31802118]
[1762795304335,0.55094005,105450.0,105440.0,0.22313798]
[1762795304536,0.55094005,105450.0,105440.0,0.31802118]
[1762795304727,0.55094005,105450.0,105440.0,0.25025441]
[1762795304922,0.55094005,105450.0,105440.0,0.31802118]
[1762795305230,0.55094005,105450.0,105440.0,0.25025441]
[1762795305425,0.54327564,105460.0,105450.0,0.05664]
[1762795305640,0.44947513,105460.0,105450.0,0.24824541]
[1762795305944,0.44947513,105460.0,105450.0,0.31601218]
[1762795306237,0.44874246,105460.0,105450.0,0.31601218]
[1762795306427,0.44874246,105460.0,105450.0,0.41054536]
[1762795306731,0.3608,105470.0,105460.0,0.1515051]
[1762795306932,0.3608,105470.0,105460.0,0.25815832]
[1762795307141,0.37434,105480.0,105470.0,0.1514961]
[1762795307337,0.37507267,105480.0,105470.0,0.24822731]
[1762795307534,0.46991987,105480.0,105470.0,0.24822731]
[1762795307733,0.57799305,105480.0,105470.0,0.24822731]
[1762795308439,0.57999305,105480.0,105470.0,0.24822731]
[1762795308836,0.48545987,105480.0,105470.0,0.05883803]
[1762795309539,0.48745987,105480.0,105470.0,0.15369423]
[1762795311028,0.60552205,105480.0,105470.0,0.02376803]
[1762795311228,0.60552205,105480.0,105470.0,0.15505423]
[1762795311536,0.48745987,105480.0,105470.0,0.06019803]
[1762795312637,0.48745987,105480.0,105470.0,0.15505423]
[1762795314041,0.48745987,105480.0,105470.0,0.22995685]
[1762795314432,0.48745987,105480.0,105470.0,0.13510065]
[1762795316538,0.60552205,105480.0,105470.0,0.00219803]
[1762795316932,0.60552205,105480.0,105470.0,0.02517803]
[1762795317138,0.60552205,105480.0,105470.0,0.06111803]
[1762795317342,0.60552205,105480.0,105470.0,0.15597423]
[1762795317640,0.48745987,105480.0,105470.0,0.15597423]
[1762795319242,0.48745987,105480.0,105470.0,0.06111803]
[1762795319436,0.48745987,105480.0,105470.0,0.15597423]
[1762795319627,0.48745987,105480.0,105470.0,0.06111803]
[1762795319833,0.60552205,105480.0,105470.0,0.06111803]
[1762795320736,0.60552205,105480.0,105470.0,0.15597423]
[1762795320936,0.48745987,105480.0,105470.0,0.15597423]
[1762795321437,0.48745987,105480.0,105470.0,0.06111803]
[1762795322341,0.48745987,105480.0,105470.0,0.15597423]
[1762795322537,0.60552205,105480.0,105470.0,0.06111803]
[1762795322735,0.60552205,105480.0,105470.0,0.00219803]
[1762795324642,0.1083962,105470.0,105460.0,0.01006447]
[1762795324841,0.60830105,105470.0,105460.0,0.0122625]
[1762795325043,0.60830105,105470.0,105460.0,0.01006447]
[1762795325441,0.60830105,105470.0,105460.0,0.0122625]
[1762795326144,0.60930105,105470.0,105460.0,0.00014246]
[1762795326334,0.60930105,105470.0,105460.0,2.46e-06]
[1762795326733,0.61030105,105470.0,105460.0,2.46e-06]
[1762795327145,0.60930105,105470.0,105460.0,2.46e-06]
[1762795327451,0.61030105,105470.0,105460.0,0.02518049]
[1762795327644,0.48746887,105470.0,105460.0,0.15598569]
[1762795327844,0.48746887,105470.0,105460.0,0.06112049]
[1762795328143,0.48746887,105470.0,105460.0,0.15598569]
[1762795328441,0.48646887,105470.0,105460.0,0.15598569]
[1762795328645,0.39161267,105470.0,105460.0,0.23332648]
[1762795329040,0.48646887,105470.0,105460.0,0.16555971]
[1762795329247,0.48546887,105470.0,105460.0,0.16555971]
[1762795329941,0.48446887,105470.0,105460.0,0.16555971]
[1762795330148,0.39061267,105470.0,105460.0,0.16555971]
[1762795330344,0.48546887,105470.0,105460.0,0.16555971]
[1762795331438,0.39061267,105470.0,105460.0,0.16555971]
[1762795331639,0.48546887,105470.0,105460.0,0.16555971]
[1762795332042,0.48546887,105470.0,105460.0,0.07069451]
[1762795332239,0.48546887,105470.0,105460.0,0.16555971]
[1762795334851,0.01627267,105470.0,105460.0,0.32779287]
[1762795335149,0.02967267,105470.0,105460.0,0.32779287]
[1762795335340,0.002,105470.0,105460.0,0.32779287]
[1762795335944,0.002,105470.0,105460.0,0.68859287]
[1762795337651,0.002,105470.0,105460.0,0.70576545]
[1762795338549,0.002,105470.0,105460.0,0.94280545]
[1762795339644,0.002,105470.0,105460.0,0.70576545]
[1762795340041,0.38969496,105490.0,105480.0,0.1526672]
[1762795340239,0.37602763,105490.0,105480.0,0.31702174]
[1762795340443,0.36162763,105490.0,105480.0,0.31702174]
[1762795340751,0.00082763,105490.0,105480.0,0.31702174]
[1762795340951,9.496e-05,105490.0,105480.0,0.31702174]
[1762795341251,9.496e-05,105490.0,105480.0,0.33427097]
[1762795341654,0.00209496,105490.0,105480.0,0.33427097]
[1762795342057,0.00509496,105490.0,105480.0,0.33427097]
[1762795342355,0.00309496,105490.0,105480.0,0.33427097]
[1762795342844,0.01849496,105490.0,105480.0,0.33427097]
[1762795343039,0.01922763,105490.0,105480.0,0.33427097]
[1762795343245,0.00082763,105490.0,105480.0,0.40188068]
[1762795343546,0.00082763,105490.0,105480.0,0.31694133]
[1762795343750,0.00082763,105490.0,105480.0,0.67774133]
[1762795345253,9.496e-05,105490.0,105480.0,0.77220772]
[1762795345452,9.496e-05,105490.0,105480.0,0.67774133]
[1762795347553,0.00082763,105490.0,105480.0,0.67774133]
[1762795348456,9.496e-05,105490.0,105480.0,0.67774133]
[1762795351551,0.03162763,105490.0,105480.0,0.22247494]
[1762795351756,0.03162763,105490.0,105480.0,0.31694133]
[1762795353156,0.00082763,105490.0,105480.0,0.31694133]
[1762795353954,9.496e-05,105490.0,105480.0,0.31694133]
[1762795354355,9.496e-05,105490.0,105480.0,0.82334133]
[1762795356857,0.39178,105510.0,105500.0,0.1526491]
[1762795357060,0.39251267,105510.0,105500.0,0.24931352]
[1762795357453,0.39251267,105510.0,105500.0,0.15484713]
[1762795357655,0.03171267,105510.0,105500.0,0.15484713]
[1762795357964,0.39551267,105510.0,105500.0,0.15484713]
[1762795359754,0.49033277,105510.0,105500.0,0.06001803]
[1762795360057,0.58479916,105510.0,105500.0,0.06001803]
[1762795360560,0.0948291,105500.0,105490.0,0.01382246]
[1762795360764,0.0948291,105500.0,105490.0,0.00014246]
[1762795360765,0.58857816,105500.0,105490.0,0.00014246]
[1762795361263,0.58857816,105500.0,105490.0,0.02477049]
[1762795361463,0.48734177,105500.0,105490.0,0.15499849]
[1762795361654,0.48834177,105500.0,105490.0,0.06016049]
[1762795361857,0.58280816,105500.0,105490.0,0.06016049]
[1762795362158,0.58380816,105500.0,105490.0,0.15499849]
[1762795362352,0.39451267,105500.0,105490.0,0.15499849]
[1762795363065,0.39451267,105500.0,105490.0,0.31695554]
[1762795363363,0.37902267,105500.0,105490.0,0.22248915]
[1762795363563,0.01822267,105500.0,105490.0,0.31695554]
[1762795363761,0.03371267,105500.0,105490.0,0.31695554]
[1762795365964,0.03371267,105500.0,105490.0,0.31709313]
[1762795366364,0.03371267,105500.0,105490.0,0.24946488]
[1762795367571,0.03371267,105500.0,105490.0,0.15499849]
[1762795367763,0.03371267,105500.0,105490.0,0.24946488]
[1762795368367,0.03371267,105500.0,105490.0,0.15499849]
[1762795368668,0.12854177,105500.0,105490.0,0.15499849]
[1762795369469,0.03371267,105500.0,105490.0,0.15499849]
[1762795369772,0.12854177,105500.0,105490.0,0.06016049]
[1762795370069,0.48934177,105500.0,105490.0,0.06016049]
[1762795371069,0.59057816,105500.0,105490.0,0.07007845]
[1762795371372,0.48934177,105500.0,105490.0,0.12693845]
[1762795371568,0.58380816,105500.0,105490.0,0.12693845]
[1762795372374,0.54966039,105500.0,105490.0,0.05920049]
[1762795372875,0.54966039,105500.0,105490.0,0.126941]
[1762795373077,0.455194,105500.0,105490.0,0.126941]
[1762795373374,0.54966039,105500.0,105490.0,0.126941]
[1762795376577,0.54966039,105500.0,105490.0,0.2217791]
[1762795380281,0.54966039,105500.0,105490.0,0.126941]
[1762795380575,0.54966039,105500.0,105490.0,0.221779]
[1762795381577,0.3608,105500.0,105490.0,0.24850488]
[1762795381774,0.55009289,105510.0,105500.0,0.05727]
[1762795381979,0.55009289,105510.0,105500.0,0.12720865]
[1762795382971,0.55209289,105510.0,105500.0,0.12720865]
[1762795384874,0.55209289,105510.0,105500.0,0.06993865]
[1762795385085,0.094829,105500.0,105490.0,0.06788308]
[1762795385278,0.55009539,105500.0,105490.0,0.00014246]
[1762795385579,1.15009539,105500.0,105490.0,0.00014246]
[1762795386481,1.15109539,105500.0,105490.0,0.00014246]
[1762795387480,0.0948381,105490.0,105480.0,0.01368]
[1762795387785,0.094856,105470.0,105460.0,0.13458464]
[1762795387973,0.816456,105470.0,105460.0,0.13678267]
[1762795388278,0.91092239,105470.0,105460.0,0.13678267]
[1762795388582,0.91092239,105470.0,105460.0,0.23164767]
[1762795388982,0.91093679,105470.0,105460.0,0.23364767]
[1762795389687,0.91193679,105470.0,105460.0,0.13678267]
[1762795389881,0.91193679,105470.0,105460.0,0.23164767]
[1762795390879,0.91193679,105470.0,105460.0,0.13678267]
[1762795391278,0.91193679,105470.0,105460.0,0.06904205]
[1762795391683,1.00641758,105470.0,105460.0,0.02524205]
[1762795391884,1.00641758,105470.0,105460.0,0.00957402]
[1762795392182,0.094865,105460.0,105450.0,0.22002688]
[1762795392382,0.64462658,105460.0,105450.0,0.22222491]
[1762795392579,0.55014579,105460.0,105450.0,0.22222491]
[1762795392971,0.55014579,105460.0,105450.0,0.3167057]
[1762795393171,0.55014579,105460.0,105450.0,0.22322491]
[1762795393577,0.55014579,105460.0,105450.0,0.12835111]
[1762795394277,0.455665,105460.0,105450.0,0.22322511]
[1762795394476,0.55014579,105460.0,105450.0,0.17942511]
[1762795394683,0.55014579,105460.0,105450.0,0.22322511]
[1762795394884,0.55014579,105460.0,105450.0,0.07009669]
[1762795397286,0.55014579,105460.0,105450.0,0.16497069]
[1762795397488,0.55014579,105460.0,105450.0,0.25945148]
[1762795397687,0.45528079,105460.0,105450.0,0.25945148]
[1762795397876,0.45528079,105460.0,105450.0,0.16497069]
[1762795398080,0.55014579,105460.0,105450.0,0.13783731]
[1762795398680,0.55014579,105460.0,105450.0,0.23271131]
[1762795399983,0.55014579,105460.0,105450.0,0.2346081]
[1762795400487,0.55014579,105460.0,105450.0,0.3294821]
[1762795401079,0.55014579,105460.0,105450.0,0.25974148]
[1762795401282,0.55014579,105460.0,105450.0,0.26174148]
[1762795401884,0.18934579,105460.0,105450.0,0.25974148]
[1762795402086,0.09448079,105460.0,105450.0,0.26174148]
[1762795402285,0.55014579,105460.0,105450.0,0.26174148]
[1762795402786,0.3608,105460.0,105450.0,0.26174148]
[1762795402981,0.55014079,105470.0,105460.0,0.152105]
[1762795403186,0.55014079,105470.0,105460.0,0.24878382]
[1762795403387,0.55014079,105470.0,105460.0,0.15430303]
[1762795404281,0.45528079,105470.0,105460.0,0.15430303]
[1762795404485,0.45528079,105470.0,105460.0,0.15530303]
[1762795405576,0.55013679,105470.0,105460.0,0.15530303]
[1762795405781,0.55013679,105470.0,105460.0,0.06043803]
[1762795406885,0.64461758,105470.0,105460.0,0.00319803]
[1762795407086,0.64461758,105470.0,105460.0,0.001]
[1762795407485,0.094865,105460.0,105450.0,0.06718866]
[1762795407688,0.64462658,105460.0,105450.0,0.06938669]
[1762795408782,0.64462658,105460.0,105450.0,0.07038669]
[1762795411086,0.64462658,105460.0,105450.0,0.16526069]
[1762795411489,0.64462658,105460.0,105450.0,0.07038669]
[1762795412588,0.64462658,105460.0,105450.0,0.16526059]
[1762795413790,0.55014579,105460.0,105450.0,0.16526059]
[1762795413990,0.55014579,105460.0,105450.0,0.07038669]
[1762795414391,0.64462658,105460.0,105450.0,0.07038669]
[1762795415088,0.55014579,105460.0,105450.0,0.07038669]
[1762795415686,0.55014579,105460.0,105450.0,0.16526059]
[1762795415887,0.55014579,105460.0,105450.0,0.07038669]
[1762795416092,0.64462658,105460.0,105450.0,0.13812731]
[1762795416295,0.64462658,105460.0,105450.0,0.07038669]
[1762795416795,0.64462658,105460.0,105450.0,0.13812731]
[1762795417896,0.455665,105460.0,105450.0,0.23300121]
[1762795418190,0.55014579,105460.0,105450.0,0.23300121]
[1762795418593,0.55014579,105460.0,105450.0,0.16526059]
[1762795418987,0.55014579,105460.0,105450.0,0.23300121]
[1762795419487,0.55014579,105460.0,105450.0,0.13812731]
[1762795419700,0.64462658,105460.0,105450.0,0.07038669]
[1762795420288,0.455665,105460.0,105450.0,0.07038669]
[1762795420497,0.55014579,105460.0,105450.0,0.25974138]
[1762795420692,0.55014579,105460.0,105450.0,0.327482]
[1762795420886,0.3608,105460.0,105450.0,0.327482]
[1762795421087,0.3608,105460.0,105450.0,0.34468073]
[1762795421486,0.55014569,105460.0,105450.0,0.34468073]
[1762795422396,0.55014569,105460.0,105450.0,0.34668073]
[1762795423692,0.55014569,105460.0,105450.0,0.26174138]
[1762795426499,0.455656,105470.0,105460.0,0.1521049]
[1762795426688,0.455656,105470.0,105460.0,0.22209373]
[1762795427288,0.455656,105470.0,105460.0,0.15430293]
[1762795427697,0.55013679,105470.0,105460.0,0.15430293]
[1762795427997,0.55013679,105470.0,105460.0,0.15530293]
[1762795429099,0.55013679,105470.0,105460.0,0.12822883]
[1762795429400,0.55013679,105470.0,105460.0,0.06043803]
[1762795430188,0.55013679,105470.0,105460.0,0.12822883]
[1762795430388,0.55013679,105470.0,105460.0,0.06043803]
[1762795430799,0.455656,105470.0,105460.0,0.06043803]
[1762795431098,0.55013679,105470.0,105460.0,0.06043803]
[1762795431698,0.55113679,105470.0,105460.0,0.15530303]
[1762795432693,0.55113679,105470.0,105460.0,0.15430303]
[1762795433202,0.55113679,105470.0,105460.0,0.15530303]
[1762795433396,0.55013679,105470.0,105460.0,0.15530303]
[1762795434013,0.55013679,105470.0,105460.0,0.06043803]
[1762795434595,0.55013679,105470.0,105460.0,0.12822883]
[1762795435404,0.55013679,105470.0,105460.0,0.22309383]
[1762795436306,0.55013679,105470.0,105460.0,0.12822883]
[1762795438396,0.55113679,105470.0,105460.0,0.12822883]
[1762795438796,0.456656,105470.0,105460.0,0.12822883]
[1762795439004,0.55113679,105470.0,105460.0,0.12822883]
[1762795439313,0.55113679,105470.0,105460.0,0.22209383]
[1762795439500,0.55113679,105470.0,105460.0,0.12722883]
[1762795439900,0.55013679,105470.0,105460.0,0.12722883]
[1762795440102,0.55013679,105470.0,105460.0,0.22209383]
[1762795440303,0.455656,105470.0,105460.0,0.22209383]
[1762795440507,0.455656,105470.0,105460.0,0.22309383]
[1762795440701,0.55013679,105470.0,105460.0,0.22309383]
[1762795440902,0.55113679,105470.0,105460.0,0.22309383]
[1762795441102,0.55113679,105470.0,105460.0,0.22209383]
[1762795441510,0.55013679,105470.0,105460.0,0.22209383]
[1762795442216,0.55013679,105470.0,105460.0,0.12722883]
[1762795442708,0.64461758,105470.0,105460.0,0.0677908]
[1762795442917,0.73947998,105470.0,105450.0,0.18576286]
[1762795443212,0.64462648,105460.0,105450.0,0.18796139]
[1762795443405,0.64462648,105460.0,105450.0,0.09308749]
[1762795444006,0.64462648,105460.0,105450.0,0.18796139]
[1762795444200,0.64462648,105460.0,105450.0,0.21110139]
[1762795444410,0.64462648,105460.0,105450.0,0.09408749]
[1762795444608,0.73910727,105460.0,105450.0,0.06893326]
[1762795444797,0.64462648,105460.0,105450.0,0.00114246]
[1762795445408,0.0948829,105440.0,105430.0,0.2204249]
[1762795445611,1.00544448,105440.0,105430.0,0.22262293]
[1762795445818,1.10138511,105440.0,105430.0,0.06800436]
[1762795446109,0.0949099,105410.0,105400.0,0.11801874]
[1762795446302,0.0949248,105400.0,105380.0,0.1526731]
[1762795446502,0.55034805,105400.0,105390.0,0.01346]
[1762795446706,0.55254608,105400.0,105390.0,0.01346]
[1762795447105,0.55254608,105400.0,105390.0,0.02312439]
[1762795447307,0.36321748,105400.0,105390.0,0.16306486]
[1762795447610,0.78545827,105400.0,105390.0,0.16306486]
[1762795447813,0.55261707,105400.0,105390.0,0.16306486]
[1762795448111,0.45769827,105400.0,105390.0,0.16306486]
[1762795448314,0.45769827,105400.0,105390.0,0.25754565]
[1762795448611,0.45769827,105400.0,105390.0,0.16306486]
[1762795450207,0.55261707,105400.0,105390.0,0.16306486]
[1762795451006,0.36321748,105400.0,105390.0,0.16306486]
[1762795451710,0.45813628,105400.0,105390.0,0.16306486]
[1762795452104,0.5527344,105400.0,105390.0,0.06813706]
[1762795452306,0.45813628,105400.0,105390.0,0.06813706]
[1762795452500,0.4578156,105400.0,105390.0,0.06813706]
[1762795452709,0.36321748,105400.0,105390.0,0.16306486]
[1762795453507,0.45813628,105400.0,105390.0,0.06813706]
[1762795453815,0.45813628,105400.0,105390.0,0.16306486]
[1762795454001,0.36321748,105400.0,105390.0,0.16306486]
[1762795454201,0.5527344,105400.0,105390.0,0.06813706]
[1762795454415,0.5527344,105400.0,105390.0,0.16306486]
[1762795454715,0.4578156,105400.0,105390.0,0.16306486]
[1762795454913,0.36321748,105400.0,105390.0,0.16306486]
[1762795455112,0.00241748,105400.0,105390.0,0.25766298]
[1762795455307,0.00241748,105400.0,105390.0,0.61846298]
[1762795455506,0.00241748,105400.0,105390.0,0.25766298]
[1762795455911,0.00241748,105400.0,105390.0,0.16406486]
[1762795456115,0.09733628,105400.0,105390.0,0.16606486]
[1762795456518,0.09733628,105400.0,105390.0,0.16706486]
[1762795456724,0.45813628,105400.0,105390.0,0.16706486]
[1762795457014,0.36321748,105400.0,105390.0,0.16606486]
[1762795457315,0.45813628,105400.0,105390.0,0.07213706]
[1762795457518,0.45813628,105400.0,105390.0,0.16706486]
[1762795458610,0.45813628,105400.0,105390.0,0.16606486]
[1762795459619,0.45813628,105400.0,105390.0,0.16406486]
[1762795459821,0.45813628,105400.0,105390.0,0.07113706]
[1762795460210,0.5527344,105400.0,105390.0,0.07013706]
[1762795460411,0.5527344,105400.0,105390.0,0.07113706]
[1762795461221,0.5527344,105400.0,105390.0,0.16606486]
[1762795461421,0.5527344,105400.0,105390.0,0.07113706]
[1762795461808,0.5527344,105400.0,105390.0,0.06913706]
[1762795462213,0.5527344,105400.0,105390.0,0.16406486]
[1762795462416,0.5527344,105400.0,105390.0,0.06813706]
[1762795463418,0.5527344,105400.0,105390.0,0.16306496]
[1762795463619,0.36321748,105400.0,105390.0,0.16306496]
[1762795463920,0.45813638,105400.0,105390.0,0.06813706]
[1762795464222,0.45813638,105400.0,105390.0,0.16306496]
[1762795464526,0.5527345,105400.0,105390.0,0.06813706]
[1762795464724,0.5527345,105400.0,105390.0,0.16306496]
[1762795465114,0.5527345,105400.0,105390.0,0.06813706]
[1762795466622,0.5527345,105400.0,105390.0,0.16306496]
[1762795466819,0.5527345,105400.0,105390.0,0.06813706]
[1762795470821,0.5527345,105400.0,105390.0,0.16306476]
[1762795472438,0.5527345,105400.0,105390.0,0.06813706]
[1762795474533,0.5527345,105400.0,105380.0,0.08113205]
[1762795474735,0.64492394,105390.0,105380.0,0.01360246]
[1762795474941,0.66924944,105390.0,105380.0,0.00014246]
[1762795475243,0.66924944,105390.0,105380.0,0.01348246]
[1762795475746,0.0949457,105370.0,105360.0,0.03589]
[1762795476042,0.0949548,105360.0,105350.0,0.12629959]
[1762795476235,0.55255095,105360.0,105350.0,0.05877]
[1762795476436,0.64714907,105360.0,105350.0,0.01334]
[1762795476843,0.55255095,105360.0,105350.0,0.01334]
[1762795477042,0.55255095,105360.0,105350.0,0.0229249]
[1762795477246,0.64714907,105360.0,105350.0,0.0229249]
[1762795477541,0.64714907,105360.0,105350.0,0.0095849]
[1762795477742,0.55255095,105360.0,105350.0,0.01334]
[1762795478143,0.55255095,105360.0,105350.0,0.01534]
[1762795478639,0.55255095,105360.0,105350.0,0.01634]
[1762795480234,0.55255095,105360.0,105350.0,0.03877]
[1762795481141,0.64714907,105360.0,105350.0,0.03877]
[1762795481340,0.64714907,105360.0,105350.0,0.04838728]
[1762795483144,0.64714907,105360.0,105350.0,0.02595728]
[1762795483446,0.97510907,105360.0,105350.0,0.02595728]
[1762795486548,0.36299803,105360.0,105350.0,0.16635108]
[1762795486749,0.45795283,105360.0,105350.0,0.07138728]
[1762795486948,0.55255095,105360.0,105350.0,0.07138728]
[1762795487248,0.55255095,105360.0,105350.0,0.16635108]
[1762795487547,0.55255095,105360.0,105350.0,0.07138728]
[1762795488050,0.64714907,105360.0,105350.0,0.07138728]
[1762795488251,0.55255095,105360.0,105350.0,0.07138728]
[1762795489750,0.55255095,105360.0,105350.0,0.16635118]
[1762795490154,0.55255095,105360.0,105350.0,0.07138728]
[1762795490841,0.55255095,105360.0,105350.0,0.16635118]
[1762795491752,0.55255095,105360.0,105350.0,0.07138728]
[1762795493655,0.55255095,105360.0,105350.0,0.16635118]
[1762795496042,0.00219803,105360.0,105350.0,0.2609493]
[1762795496254,0.00219803,105360.0,105350.0,0.6217493]
[1762795497543,0.00021945,105370.0,105360.0,0.1530048]